[Event "Championnat du monde jeunes U12F"]
[Date "2024.11.26"]
[White "Chichinadze, Anastasia"]
[Black "Alcantara, Levanah"]
[WhiteElo "1682"]
[BlackElo "1753"]
[Round "11.19"]
[Result "0-1"]
[TimeControl "5400+30"]

1. e4 {[%clk 1:30:58]} 1... c6 {[%clk 1:30:51]} 2. d4 {[%clk 1:31:24]} 2... d5
{[%clk 1:31:17]} 3. exd5 {[%clk 1:31:50]} 3... cxd5 {[%clk 1:31:43]} 4. Bd3
{[%clk 1:32:14]} 4... Nc6 {[%clk 1:32:09]} 5. c3 {[%clk 1:32:40]} 5... e6 {[%clk
1:32:35]} 6. f4 {[%clk 1:32:43]} 6... Bd6 {[%clk 1:32:39]} 7. Nf3 {[%clk
1:30:43]} 7... Nge7 {[%clk 1:32:54]} 8. O-O {[%clk 1:29:24]} 8... O-O {[%clk
1:30:22]} 9. Qe2 {[%clk 1:17:15]} 9... Bd7 {[%clk 1:17:42]} 10. Be3 {[%clk
1:09:18]} 10... f6 {[%clk 1:10:24]} 11. Nbd2 {[%clk 1:07:03]} 11... Qc7 {[%clk
1:06:07]} 12. Rae1 {[%clk 1:04:45]} 12... Rae8 {[%clk 0:50:30]} 13. Kh1 {[%clk
0:59:35]} 13... Ng6 {[%clk 0:34:25]} 14. Bxg6 {[%clk 0:52:19]} 14... hxg6 {[%clk
0:34:51]} 15. Qd3 {[%clk 0:47:26]} 15... Ne7 {[%clk 0:33:21]} 16. Nh4 {[%clk
0:46:02]} 16... Kf7 {[%clk 0:31:31]} 17. Ndf3 {[%clk 0:43:41]} 17... Rh8 {[%clk
0:30:22]} 18. g4 {[%clk 0:34:56]} 18... Rc8 {[%clk 0:21:28]} 19. g5 {[%clk
0:28:05]} 19... Nf5 {[%clk 0:20:27]} 20. Nxf5 {[%clk 0:28:09]} 20... gxf5 {[%clk
0:18:26]} 21. Kg2 {[%clk 0:24:59]} 21... a6 {[%clk 0:14:20]} 22. Qd2 {[%clk
0:21:26]} 22... Rce8 {[%clk 0:12:32]} 23. h4 {[%clk 0:19:56]} 23... Ke7 {[%clk
0:12:43]} 24. Kg3 {[%clk 0:10:35]} 24... Kd8 {[%clk 0:12:10]} 25. b3 {[%clk
0:09:10]} 25... Bc6 {[%clk 0:08:40]} 26. Rc1 {[%clk 0:08:17]} 26... Qf7 {[%clk
0:06:32]} 27. Qh2 {[%clk 0:08:43]} 27... Qh5 {[%clk 0:03:04]} 28. Qh3 {[%clk
0:09:04]} 28... Bd7 {[%clk 0:02:19]} 29. Rcd1 {[%clk 0:08:00]} 29... Kc8 {[%clk
0:02:13]} 30. c4 {[%clk 0:07:44]} 30... Kb8 {[%clk 0:02:10]} 31. Rfe1 {[%clk
0:06:16]} 31... Re7 {[%clk 0:01:47]} 32. Bc1 {[%clk 0:05:32]} 32... Rhe8 {[%clk
0:01:48]} 33. Kg2 {[%clk 0:01:52]} 33... Bc6 {[%clk 0:01:32]} 34. c5 {[%clk
0:02:14]} 34... Bc7 {[%clk 0:01:51]} 35. Qg3 {[%clk 0:02:05]} 35... Ka8 {[%clk
0:01:25]} 36. Rd3 {[%clk 0:00:42]} 36... Qf7 {[%clk 0:01:02]} 37. Rde3 {[%clk
0:00:32]} 37... Ka7 {[%clk 0:00:38]} 38. Kh2 {[%clk 0:00:32]} 38... Rh8 {[%clk
0:00:43]} 39. Bb2 {[%clk 0:00:43]} 39... Qe8 {[%clk 0:00:47]} 40. Kg2 {[%clk
0:00:47]} 40... Qc8 {[%clk 0:01:06]} 41. Bc1 {[%clk 0:00:46]} 41... Bd7 {[%clk
0:01:05]} 42. a4 {[%clk 0:00:39]} 42... Bc6 {[%clk 0:01:11]} 43. Kf2 {[%clk
0:00:35]} 43... Rhe8 {[%clk 0:01:34]} 44. Ba3 {[%clk 0:00:35]} 44... Qb8 {[%clk
0:01:54]} 45. R3e2 {[%clk 0:00:32]} 45... Bxf4 {[%clk 0:02:05]} 46. Qh3 {[%clk
0:00:55]} 46... Qc8 {[%clk 0:00:36]} 47. Bb2 {[%clk 0:00:49]} 47... Rh8 {[%clk
0:00:48]} 48. Qg2 {[%clk 0:00:59]} 48... Bc7 {[%clk 0:00:45]} 49. gxf6 {[%clk
0:00:35]} 49... gxf6 {[%clk 0:01:13]} 50. Qg6 {[%clk 0:00:53]} 50... Rg8 {[%clk
0:00:49]} 51. Qxf6 {[%clk 0:01:16]} 51... Reg7 {[%clk 0:00:44]} 52. Ng5 {[%clk
0:00:57]} 52... Rg6 {[%clk 0:00:56]} 53. Qf7 {[%clk 0:01:02]} 53... R8g7 {[%clk
0:01:15]} 54. Rxe6 {[%clk 0:00:33]} 54... Rxf7 {[%clk 0:01:25]} 55. Rxg6 {[%clk
0:00:57]} 55... Qh8 {[%clk 0:00:49]} 56. Nxf7 {[%clk 0:00:39]} 56... Qxh4+
{[%clk 0:01:17]} 57. Kf1 {[%clk 0:00:59]} 57... Qh1+ {[%clk 0:00:52]} 58. Kf2
{[%clk 0:00:47]} 58... Qh4+ {[%clk 0:01:10]} 59. Kf1 {[%clk 0:01:09]} 59... Qf4+
{[%clk 0:00:41]} 60. Kg1 {[%clk 0:01:22]} 60... Qh2+ {[%clk 0:01:05]} 61. Kf1
{[%clk 0:01:45]} 61... Bg3 {[%clk 0:01:15]} 62. Rd1 {[%clk 0:01:23]} 62... Qf2#
{[%clk 0:01:40]} 0-1

[Variant "Standard"]
[Site "Europe Echecs"]

[Event "Championnat du monde jeunes U12F"]
[Date "2024.11.26"]
[White "Messali Anger, Ilyana"]
[Black "Kovalskyy, Alicia"]
[WhiteElo "1687"]
[BlackElo "1871"]
[Round "11.20"]
[Result "0-1"]
[TimeControl "5400+30"]

1. e4 {[%clk 1:30:55]} 1... e5 {[%clk 1:30:57]} 2. Nf3 {[%clk 1:31:13]} 2... Nc6
{[%clk 1:31:24]} 3. Bb5 {[%clk 1:31:20]} 3... a6 {[%clk 1:31:48]} 4. Ba4 {[%clk
1:31:34]} 4... Nf6 {[%clk 1:32:10]} 5. O-O {[%clk 1:30:57]} 5... Be7 {[%clk
1:32:03]} 6. Re1 {[%clk 1:30:49]} 6... b5 {[%clk 1:32:24]} 7. Bb3 {[%clk
1:30:44]} 7... d6 {[%clk 1:32:31]} 8. c3 {[%clk 1:30:04]} 8... O-O {[%clk
1:32:54]} 9. h3 {[%clk 1:29:28]} 9... Na5 {[%clk 1:33:16]} 10. Bc2 {[%clk
1:28:10]} 10... c5 {[%clk 1:33:32]} 11. d4 {[%clk 1:25:12]} 11... Nd7 {[%clk
1:33:32]} 12. Nbd2 {[%clk 1:18:49]} 12... exd4 {[%clk 1:32:51]} 13. cxd4 {[%clk
1:18:27]} 13... Nc6 {[%clk 1:33:17]} 14. Nf1 {[%clk 1:06:30]} 14... Bf6 {[%clk
1:23:09]} 15. Be3 {[%clk 1:05:03]} 15... Qb6 {[%clk 1:12:43]} 16. e5 {[%clk
0:41:31]} 16... dxe5 {[%clk 1:04:49]} 17. dxc5 {[%clk 0:38:55]} 17... Qc7 {[%clk
0:54:19]} 18. Qd3 {[%clk 0:32:32]} 18... g6 {[%clk 0:54:09]} 19. a3 {[%clk
0:30:07]} 19... Rd8 {[%clk 0:44:52]} 20. Qd6 {[%clk 0:22:11]} 20... Qxd6 {[%clk
0:38:39]} 21. cxd6 {[%clk 0:22:28]} 21... Bb7 {[%clk 0:31:01]} 22. Be4 {[%clk
0:19:20]} 22... Na5 {[%clk 0:24:38]} 23. Ng3 {[%clk 0:16:47]} 23... Bg7 {[%clk
0:22:51]} 24. Rad1 {[%clk 0:12:23]} 24... f5 {[%clk 0:17:07]} 25. Bxb7 {[%clk
0:09:58]} 25... Nxb7 {[%clk 0:17:34]} 26. Bg5 {[%clk 0:07:59]} 26... Re8 {[%clk
0:15:26]} 27. b4 {[%clk 0:03:46]} 27... Bf8 {[%clk 0:12:46]} 28. Rd2 {[%clk
0:01:21]} 28... h6 {[%clk 0:11:32]} 29. Be7 {[%clk 0:01:25]} 29... Bxe7 {[%clk
0:10:21]} 30. dxe7 {[%clk 0:01:49]} 30... Rxe7 {[%clk 0:10:39]} 31. Rc1 {[%clk
0:01:23]} 31... Nf6 {[%clk 0:04:33]} 32. Rc6 {[%clk 0:00:59]} 32... Kg7 {[%clk
0:03:54]} 33. Nxe5 {[%clk 0:00:43]} 33... f4 {[%clk 0:02:25]} 34. Nf1 {[%clk
0:00:42]} 34... Nd8 {[%clk 0:02:19]} 35. Rcd6 {[%clk 0:00:50]} 35... Rxe5 {[%clk
0:00:52]} 36. Rxd8 {[%clk 0:01:09]} 36... Ra7 {[%clk 0:01:14]} 37. Ra2 {[%clk
0:00:39]} 37... a5 {[%clk 0:00:51]} 38. f3 {[%clk 0:00:34]} 38... axb4 {[%clk
0:01:14]} 39. Rd3 {[%clk 0:00:40]} 39... Rd5 {[%clk 0:00:58]} 40. Rb3 {[%clk
0:00:38]} 40... Rxa3 {[%clk 0:01:06]} 41. Raxa3 {[%clk 0:00:52]} 41... bxa3
{[%clk 0:01:31]} 42. Rxa3 {[%clk 0:01:14]} 42... b4 {[%clk 0:00:56]} 43. Rb3
{[%clk 0:01:11]} 43... Rb5 {[%clk 0:00:55]} 44. Nd2 {[%clk 0:01:10]} 44... Nd5
{[%clk 0:01:09]} 45. Nc4 {[%clk 0:00:59]} 45... Rc5 {[%clk 0:01:26]} 46. Nd2
{[%clk 0:00:43]} 46... Rc3 {[%clk 0:00:54]} 47. Kf2 {[%clk 0:00:56]} 47... Rxb3
{[%clk 0:01:20]} 48. Nxb3 {[%clk 0:01:20]} 48... Kf6 {[%clk 0:01:34]} 49. Ke2
{[%clk 0:00:53]} 49... Ke5 {[%clk 0:01:44]} 50. Kd3 {[%clk 0:00:48]} 50... Ne3
{[%clk 0:01:30]} 51. g4 {[%clk 0:00:36]} 51... Kd5 {[%clk 0:00:55]} 52. Nd2
{[%clk 0:00:41]} 52... g5 {[%clk 0:00:44]} 53. Nb3 {[%clk 0:00:47]} 53... Nc4
{[%clk 0:00:40]} 54. Kc2 {[%clk 0:00:44]} 54... Ne3+ {[%clk 0:00:38]} 55. Kd3
{[%clk 0:01:01]} 55... Nc4 {[%clk 0:00:40]} 56. Kc2 {[%clk 0:01:10]} 56... Ne5
{[%clk 0:00:38]} 57. Nd2 {[%clk 0:00:42]} 57... Kd4 {[%clk 0:01:07]} 0-1

[Variant "Standard"]
[Site "Europe Echecs"]

[Event "Championnat du monde jeunes U12F"]
[Date "2024.11.26"]
[White "Smirnova, Viktoria A"]
[Black "Baruch, Amit"]
[WhiteElo "1658"]
[BlackElo "1747"]
[Round "11.21"]
[Result "1/2-1/2"]
[TimeControl "5400+30"]

1. d4 {[%clk 1:30:57]} 1... Nf6 {[%clk 1:30:52]} 2. c4 {[%clk 1:31:22]} 2... e6
{[%clk 1:31:18]} 3. Nf3 {[%clk 1:31:47]} 3... b6 {[%clk 1:31:38]} 4. g3 {[%clk
1:32:07]} 4... Bb4+ {[%clk 1:32:00]} 5. Bd2 {[%clk 1:32:29]} 5... a5 {[%clk
1:32:24]} 6. Bg2 {[%clk 1:32:20]} 6... O-O {[%clk 1:32:43]} 7. O-O {[%clk
1:31:31]} 7... Bb7 {[%clk 1:33:00]} 8. Bg5 {[%clk 1:29:43]} 8... Be7 {[%clk
1:33:15]} 9. Bxf6 {[%clk 1:29:29]} 9... Bxf6 {[%clk 1:33:33]} 10. Nc3 {[%clk
1:29:24]} 10... d6 {[%clk 1:32:38]} 11. Qd2 {[%clk 1:28:25]} 11... Nd7 {[%clk
1:31:15]} 12. e4 {[%clk 1:26:26]} 12... e5 {[%clk 1:23:17]} 13. d5 {[%clk
1:17:31]} 13... Nc5 {[%clk 1:21:48]} 14. Qc2 {[%clk 1:14:08]} 14... Bc8 {[%clk
1:17:41]} 15. Nd2 {[%clk 0:52:53]} 15... Be7 {[%clk 1:07:00]} 16. Nb3 {[%clk
0:50:50]} 16... f5 {[%clk 1:04:58]} 17. Nxc5 {[%clk 0:49:45]} 17... bxc5 {[%clk
1:05:17]} 18. f4 {[%clk 0:35:57]} 18... exf4 {[%clk 0:57:36]} 19. Rxf4 {[%clk
0:35:14]} 19... Bg5 {[%clk 0:57:18]} 20. Rf3 {[%clk 0:33:26]} 20... f4 {[%clk
0:55:01]} 21. gxf4 {[%clk 0:28:11]} 21... Rxf4 {[%clk 0:48:48]} 22. Qf2 {[%clk
0:20:55]} 22... Bh4 {[%clk 0:32:48]} 23. Qe3 {[%clk 0:20:00]} 23... Rxf3 {[%clk
0:30:35]} 24. Qxf3 {[%clk 0:20:24]} 24... Bf6 {[%clk 0:17:50]} 25. Rf1 {[%clk
0:19:21]} 25... Qe7 {[%clk 0:17:46]} 26. b3 {[%clk 0:15:49]} 26... Bd7 {[%clk
0:16:27]} 27. Ne2 {[%clk 0:15:21]} 27... Rf8 {[%clk 0:15:56]} 28. Kh1 {[%clk
0:15:44]} 28... Qe5 {[%clk 0:14:31]} 29. Ng3 {[%clk 0:14:33]} 29... Be7 {[%clk
0:13:17]} 30. Qe2 {[%clk 0:14:41]} 30... Rxf1+ {[%clk 0:13:18]} 31. Qxf1 {[%clk
0:15:10]} 31... Qb2 {[%clk 0:13:17]} 32. Qe2 {[%clk 0:14:24]} 32... Qa1+ {[%clk
0:12:57]} 33. Nf1 {[%clk 0:13:56]} 33... Bf6 {[%clk 0:13:00]} 34. Qd2 {[%clk
0:13:32]} 34... Bc3 {[%clk 0:10:50]} 35. Qg5 {[%clk 0:13:55]} 35... Bf6 {[%clk
0:11:02]} 36. Qd2 {[%clk 0:14:21]} 36... Qc3 {[%clk 0:10:38]} 37. Qxc3 {[%clk
0:11:47]} 37... Bxc3 {[%clk 0:11:02]} 38. Ne3 {[%clk 0:12:04]} 38... Bd2 {[%clk
0:10:51]} 39. Nf5 {[%clk 0:11:49]} 39... g6 {[%clk 0:10:08]} 40. Ne7+ {[%clk
0:11:14]} 40... Kf7 {[%clk 0:10:32]} 41. Nc6 {[%clk 0:11:31]} 41... Kf6 {[%clk
0:08:29]} 42. Kg1 {[%clk 0:11:32]} 42... Bg4 {[%clk 0:08:29]} 43. Bf1 {[%clk
0:11:21]} 43... Bc3 {[%clk 0:06:46]} 44. Bd3 {[%clk 0:10:14]} 44... Kg5 {[%clk
0:06:23]} 45. Kf2 {[%clk 0:07:15]} 45... Kf4 {[%clk 0:05:30]} 46. Bb1 {[%clk
0:05:32]} 46... h5 {[%clk 0:05:21]} 47. Ne7 {[%clk 0:05:03]} 47... Ke5 {[%clk
0:05:02]} 48. Nxg6+ {[%clk 0:04:52]} 48... Kf6 {[%clk 0:05:23]} 49. Nf4 {[%clk
0:04:20]} 49... Be5 {[%clk 0:03:43]} 50. Nd3 {[%clk 0:02:39]} 50... Bxh2 {[%clk
0:03:53]} 51. Kg2 {[%clk 0:03:05]} 51... Be5 {[%clk 0:04:06]} 52. Bc2 {[%clk
0:02:23]} 52... h4 {[%clk 0:04:01]} 53. Nf2 {[%clk 0:02:46]} 53... Be2 {[%clk
0:03:42]} 54. Bd3 {[%clk 0:02:25]} 54... Bh5 {[%clk 0:02:43]} 55. Bf1 {[%clk
0:00:33]} 55... Bg3 {[%clk 0:02:45]} 56. Nd3 {[%clk 0:00:34]} 56... Bd1 {[%clk
0:02:52]} 57. Nc1 {[%clk 0:00:31]} 57... Ke5 {[%clk 0:02:53]} 58. Be2 {[%clk
0:00:34]} 58... Bc2 {[%clk 0:03:02]} 59. Bf3 {[%clk 0:00:32]} 59... Bxe4 {[%clk
0:01:24]} 60. Ne2 {[%clk 0:00:35]} 60... Bxf3+ {[%clk 0:01:18]} 61. Kxf3 {[%clk
0:01:04]} 61... Be1 {[%clk 0:01:38]} 62. Ng1 {[%clk 0:00:51]} 62... Kd4 {[%clk
0:01:29]} 63. Ke2 {[%clk 0:01:02]} 63... Bg3 {[%clk 0:01:53]} 64. Kd2 {[%clk
0:00:37]} 64... Bf4+ {[%clk 0:02:02]} 65. Ke2 {[%clk 0:00:40]} 65... Kc3 {[%clk
0:02:21]} 66. Nh3 {[%clk 0:01:04]} 66... Bg3 {[%clk 0:02:43]} 67. Ng5 {[%clk
0:01:06]} 67... Kb2 {[%clk 0:02:30]} 68. Kd3 {[%clk 0:01:20]} 68... Bf4 {[%clk
0:01:30]} 69. Nh3 {[%clk 0:01:40]} 69... Be5 {[%clk 0:01:19]} 70. Ng5 {[%clk
0:01:58]} 70... Kc1 {[%clk 0:00:43]} 71. Nh3 {[%clk 0:02:16]} 71... Kd1 {[%clk
0:00:56]} 72. Ke3 {[%clk 0:01:56]} 72... Kc2 {[%clk 0:00:59]} 73. Ke2 {[%clk
0:02:08]} 73... Kc3 {[%clk 0:01:15]} 74. Ke3 {[%clk 0:02:07]} 74... Bd4+ {[%clk
0:01:23]} 75. Ke2 {[%clk 0:02:30]} 75... Bg7 {[%clk 0:01:33]} 76. Ng5 {[%clk
0:01:36]} 76... Bh6 {[%clk 0:01:39]} 77. Nh3 {[%clk 0:01:43]} 77... Kd4 {[%clk
0:01:20]} 78. Nf2 {[%clk 0:01:45]} 78... Bg5 {[%clk 0:01:16]} 79. Nh3 {[%clk
0:00:32]} 79... Bh6 {[%clk 0:00:57]} 80. Nf2 {[%clk 0:00:58]} 80... Bf4 {[%clk
0:00:44]} 81. Nh3 {[%clk 0:00:50]} 81... Bh6 {[%clk 0:00:42]} 82. Nf2 {[%clk
0:01:14]} 82... Bc1 {[%clk 0:00:52]} 83. Nd3 {[%clk 0:01:02]} 83... Be3 {[%clk
0:00:51]} 84. Ne1 {[%clk 0:01:20]} 84... Ke4 {[%clk 0:00:33]} 85. Ng2 {[%clk
0:01:25]} 85... Bg5 {[%clk 0:00:58]} 86. Ne1 {[%clk 0:01:27]} 86... h3 {[%clk
0:01:10]} 87. Kf1 {[%clk 0:01:32]} 87... Kf4 {[%clk 0:01:02]} 88. Kg1 {[%clk
0:01:46]} 88... Kg3 {[%clk 0:01:18]} 89. Nc2 {[%clk 0:02:07]} 89... Bd2 {[%clk
0:00:55]} 90. Na3 {[%clk 0:01:31]} 90... Be3+ {[%clk 0:00:46]} 1/2-1/2

[Variant "Standard"]
[Site "Europe Echecs"]

[Event "Championnat du monde jeunes U12F"]
[Date "2024.11.26"]
[White "Oksanen, Maria"]
[Black "Huang, Lucia"]
[WhiteElo "1725"]
[BlackElo "1621"]
[Round "11.22"]
[Result "1/2-1/2"]
[TimeControl "5400+30"]

1. e4 {[%clk 1:30:57]} 1... e5 {[%clk 1:30:54]} 2. Nf3 {[%clk 1:31:19]} 2... Nc6
{[%clk 1:31:16]} 3. Bb5 {[%clk 1:31:42]} 3... a6 {[%clk 1:31:31]} 4. Ba4 {[%clk
1:32:02]} 4... Nf6 {[%clk 1:31:34]} 5. O-O {[%clk 1:32:20]} 5... Nxe4 {[%clk
1:31:10]} 6. Re1 {[%clk 1:32:31]} 6... Nc5 {[%clk 1:30:25]} 7. Bxc6 {[%clk
1:32:23]} 7... dxc6 {[%clk 1:29:40]} 8. Nxe5 {[%clk 1:32:15]} 8... Be7 {[%clk
1:28:56]} 9. b4 {[%clk 1:28:43]} 9... Ne6 {[%clk 1:27:00]} 10. Qg4 {[%clk
1:23:37]} 10... O-O {[%clk 1:24:10]} 11. Bb2 {[%clk 1:21:33]} 11... Bf6 {[%clk
1:21:51]} 12. d4 {[%clk 1:18:12]} 12... Qd6 {[%clk 1:16:03]} 13. c3 {[%clk
1:16:43]} 13... Re8 {[%clk 1:11:51]} 14. Nd2 {[%clk 1:15:13]} 14... Nxd4 {[%clk
1:08:55]} 15. Qxd4 {[%clk 1:15:18]} 15... Rxe5 {[%clk 1:08:50]} 16. Rxe5 {[%clk
1:14:12]} 16... Qxe5 {[%clk 1:08:05]} 17. Qxe5 {[%clk 1:10:50]} 17... Bxe5
{[%clk 1:08:30]} 18. Re1 {[%clk 1:11:09]} 18... f6 {[%clk 1:08:52]} 19. Nc4
{[%clk 1:10:33]} 19... Bd6 {[%clk 1:08:08]} 20. Rd1 {[%clk 1:02:13]} 20... Be6
{[%clk 1:05:37]} 21. Nxd6 {[%clk 1:01:39]} 21... cxd6 {[%clk 1:05:09]} 22. Rxd6
{[%clk 1:01:57]} 22... Bxa2 {[%clk 1:05:29]} 23. Bc1 {[%clk 0:57:00]} 23... Bd5
{[%clk 1:04:32]} 24. Be3 {[%clk 0:55:47]} 24... b5 {[%clk 1:03:44]} 25. Bb6
{[%clk 0:55:36]} 25... Re8 {[%clk 1:03:16]} 26. Rd8 {[%clk 0:55:57]} 26... Rxd8
{[%clk 1:03:20]} 27. Bxd8 {[%clk 0:56:18]} 27... Kf7 {[%clk 1:03:43]} 28. f3
{[%clk 0:56:24]} 28... Ke6 {[%clk 1:03:32]} 29. Kf2 {[%clk 0:56:33]} 29... Kd6
{[%clk 1:02:04]} 30. Bb6 {[%clk 0:56:45]} 30... Bc4 {[%clk 1:00:43]} 31. Ke3
{[%clk 0:56:51]} 31... Ke6 {[%clk 0:56:58]} 32. g3 {[%clk 0:52:56]} 32... h5
{[%clk 0:56:05]} 33. h4 {[%clk 0:51:49]} 33... Kf5 {[%clk 0:55:30]} 34. Bc7
{[%clk 0:51:12]} 34... Bd5 {[%clk 0:54:15]} 35. Bb6 {[%clk 0:51:06]} 35... g5
{[%clk 0:52:24]} 36. Bc7 {[%clk 0:51:21]} 36... Bc4 {[%clk 0:51:07]} 37. Bb6
{[%clk 0:51:35]} 1/2-1/2

[Variant "Standard"]
[Site "Europe Echecs"]

[Event "Championnat du monde jeunes U12F"]
[Date "2024.11.26"]
[White "Sinkar, Anagha Aniket"]
[Black "Busuioc, Amelie"]
[WhiteElo "1723"]
[BlackElo "1581"]
[Round "11.23"]
[Result "1-0"]
[TimeControl "5400+30"]

1. e4 {[%clk 1:30:47]} 1... c5 {[%clk 1:30:54]} 2. c3 {[%clk 1:31:10]} 2... e6
{[%clk 1:31:20]} 3. d4 {[%clk 1:31:32]} 3... d5 {[%clk 1:31:43]} 4. exd5 {[%clk
1:31:54]} 4... exd5 {[%clk 1:32:05]} 5. Bb5+ {[%clk 1:32:04]} 5... Bd7 {[%clk
1:32:19]} 6. Bxd7+ {[%clk 1:30:17]} 6... Nxd7 {[%clk 1:32:16]} 7. Nf3 {[%clk
1:29:50]} 7... Ngf6 {[%clk 1:32:22]} 8. O-O {[%clk 1:28:33]} 8... Be7 {[%clk
1:32:31]} 9. Nh4 {[%clk 1:27:23]} 9... Ne4 {[%clk 1:29:52]} 10. Nf5 {[%clk
1:27:02]} 10... Bf6 {[%clk 1:29:59]} 11. f3 {[%clk 1:26:25]} 11... Ng5 {[%clk
1:26:06]} 12. Bxg5 {[%clk 1:24:06]} 12... Bxg5 {[%clk 1:26:21]} 13. Nxg7+ {[%clk
1:23:51]} 13... Kf8 {[%clk 1:26:37]} 14. Nf5 {[%clk 1:23:48]} 14... Qf6 {[%clk
1:23:28]} 15. Qd3 {[%clk 1:22:55]} 15... c4 {[%clk 1:21:20]} 16. Qc2 {[%clk
1:23:00]} 16... Re8 {[%clk 1:19:46]} 17. f4 {[%clk 1:22:07]} 17... Bh6 {[%clk
1:19:02]} 18. Nxh6 {[%clk 1:21:44]} 18... Qxh6 {[%clk 1:19:11]} 19. Na3 {[%clk
1:20:46]} 19... Nf6 {[%clk 1:18:31]} 20. Rf3 {[%clk 1:12:42]} 20... Ng4 {[%clk
1:17:19]} 21. h3 {[%clk 1:12:44]} 21... Ne3 {[%clk 1:17:20]} 22. Qf2 {[%clk
1:12:07]} 22... Nf5 {[%clk 1:17:15]} 23. Re1 {[%clk 1:09:56]} 23... Rxe1+ {[%clk
1:16:48]} 24. Qxe1 {[%clk 1:10:16]} 24... Rg8 {[%clk 1:16:55]} 25. Qe5 {[%clk
1:03:08]} 25... Qg6 {[%clk 1:15:39]} 26. Rf2 {[%clk 1:01:28]} 26... Nh4 {[%clk
1:15:39]} 27. Qxd5 {[%clk 1:01:28]} 27... Qg3 {[%clk 1:14:25]} 28. Qxb7 {[%clk
1:00:03]} 28... Qxh3 {[%clk 1:14:08]} 29. Qb8+ {[%clk 1:00:20]} 29... Kg7 {[%clk
1:14:02]} 30. Qxg8+ {[%clk 1:00:44]} 30... Kxg8 {[%clk 1:13:57]} 31. gxh3 {[%clk
1:01:09]} 1-0

[Variant "Standard"]
[Site "Europe Echecs"]

[Event "Championnat du monde jeunes U12F"]
[Date "2024.11.26"]
[White "Abylaykyzy, Bibisara"]
[Black "Bohatyrova, Mariia"]
[WhiteElo "1694"]
[BlackElo "1722"]
[Round "11.24"]
[Result "1-0"]
[TimeControl "5400+30"]

1. e4 {[%clk 1:30:58]} 1... c5 {[%clk 1:30:56]} 2. Nf3 {[%clk 1:31:09]} 2... d6
{[%clk 1:31:14]} 3. d4 {[%clk 1:31:34]} 3... cxd4 {[%clk 1:31:40]} 4. Nxd4
{[%clk 1:32:00]} 4... Nf6 {[%clk 1:32:05]} 5. Nc3 {[%clk 1:32:28]} 5... g6
{[%clk 1:32:25]} 6. Be3 {[%clk 1:32:54]} 6... Nc6 {[%clk 1:32:38]} 7. f3 {[%clk
1:30:32]} 7... h5 {[%clk 1:33:02]} 8. Bc4 {[%clk 1:30:53]} 8... Nxd4 {[%clk
1:31:38]} 9. Bxd4 {[%clk 1:31:15]} 9... a6 {[%clk 1:19:28]} 10. O-O {[%clk
1:31:17]} 10... Bh6 {[%clk 1:15:20]} 11. Qd3 {[%clk 1:28:33]} 11... e5 {[%clk
1:03:55]} 12. Bf2 {[%clk 1:28:10]} 12... Be6 {[%clk 1:03:03]} 13. Rad1 {[%clk
1:25:18]} 13... Ke7 {[%clk 0:58:26]} 14. Nd5+ {[%clk 1:11:07]} 14... Nxd5 {[%clk
0:55:36]} 15. Bxd5 {[%clk 1:10:41]} 15... Bxd5 {[%clk 0:53:34]} 16. Qxd5 {[%clk
1:10:56]} 16... Qc7 {[%clk 0:51:48]} 17. Rd3 {[%clk 1:11:03]} 17... Qc6 {[%clk
0:39:42]} 18. Rfd1 {[%clk 1:07:18]} 18... Rhd8 {[%clk 0:29:45]} 19. c4 {[%clk
1:06:45]} 19... Qxd5 {[%clk 0:14:24]} 20. Rxd5 {[%clk 1:06:53]} 20... Ke6 {[%clk
0:14:05]} 21. g3 {[%clk 1:03:41]} 21... f5 {[%clk 0:10:37]} 22. Bc5 {[%clk
1:03:23]} 22... Bf8 {[%clk 0:10:20]} 23. Ba3 {[%clk 1:00:43]} 23... Be7 {[%clk
0:08:55]} 24. R1d3 {[%clk 0:54:15]} 24... Rac8 {[%clk 0:07:56]} 25. b3 {[%clk
0:54:01]} 25... b6 {[%clk 0:06:44]} 26. Kf2 {[%clk 0:52:17]} 26... Rc6 {[%clk
0:06:31]} 27. Ke3 {[%clk 0:50:47]} 27... h4 {[%clk 0:04:43]} 28. f4 {[%clk
0:49:03]} 28... exf4+ {[%clk 0:02:33]} 29. gxf4 {[%clk 0:46:36]} 29... fxe4
{[%clk 0:02:49]} 30. Kxe4 {[%clk 0:46:57]} 30... Rf8 {[%clk 0:01:31]} 31. Rd1
{[%clk 0:45:11]} 31... a5 {[%clk 0:01:04]} 32. Rb5 {[%clk 0:40:01]} 32... a4
{[%clk 0:00:48]} 33. Rg1 {[%clk 0:37:37]} 33... Rg8 {[%clk 0:00:37]} 34. Bb2
{[%clk 0:37:23]} 34... axb3 {[%clk 0:00:39]} 35. axb3 {[%clk 0:37:25]} 35... Kd7
{[%clk 0:00:41]} 36. Bd4 {[%clk 0:34:15]} 36... Kc7 {[%clk 0:00:53]} 37. Kd5
{[%clk 0:34:05]} 37... g5 {[%clk 0:00:41]} 38. f5 {[%clk 0:31:08]} 38... Rf8
{[%clk 0:00:36]} 39. Ke6 {[%clk 0:29:56]} 39... Bd8 {[%clk 0:00:41]} 40. Rd5
{[%clk 0:29:01]} 40... Re8+ {[%clk 0:00:43]} 41. Kf7 {[%clk 0:27:56]} 41... Re7+
{[%clk 0:00:35]} 42. Kf8 {[%clk 0:27:46]} 42... Re2 {[%clk 0:00:40]} 43. f6
{[%clk 0:27:56]} 43... Rxh2 {[%clk 0:00:35]} 44. f7 {[%clk 0:28:20]} 44... Kb7
{[%clk 0:00:31]} 45. Kg8 {[%clk 0:28:35]} 45... Be7 {[%clk 0:00:35]} 46. Re1
{[%clk 0:28:04]} 46... Rc8+ {[%clk 0:00:47]} 47. Kg7 {[%clk 0:26:46]} 47... Bf8+
{[%clk 0:00:52]} 48. Kf6 {[%clk 0:25:52]} 48... Rh3 {[%clk 0:00:37]} 49. Re8
{[%clk 0:22:52]} 49... Rf3+ {[%clk 0:00:43]} 50. Kg6 {[%clk 0:22:49]} 50... g4
{[%clk 0:00:34]} 51. Rh5 {[%clk 0:21:32]} 51... h3 {[%clk 0:00:42]} 52. Rh8
{[%clk 0:18:03]} 52... h2 {[%clk 0:00:58]} 53. Rxh2 {[%clk 0:17:19]} 53... Rh3
{[%clk 0:00:49]} 54. Rhe2 {[%clk 0:16:45]} 54... Rf3 {[%clk 0:00:33]} 55. Bg7
{[%clk 0:15:33]} 55... Bxg7 {[%clk 0:00:39]} 56. Kxg7 {[%clk 0:15:56]} 56... g3
{[%clk 0:01:00]} 57. Rxc8 {[%clk 0:16:21]} 57... Kxc8 {[%clk 0:01:27]} 58. f8=Q+
{[%clk 0:16:43]} 58... Rxf8 {[%clk 0:01:13]} 59. Kxf8 {[%clk 0:17:09]} 59... b5
{[%clk 0:00:55]} 60. cxb5 {[%clk 0:17:20]} 60... Kc7 {[%clk 0:00:49]} 61. Rg2
{[%clk 0:17:33]} 61... Kb6 {[%clk 0:01:14]} 62. Rxg3 {[%clk 0:17:57]} 62... Kxb5
{[%clk 0:01:41]} 63. Ke7 {[%clk 0:18:21]} 63... d5 {[%clk 0:02:02]} 64. Ke6
{[%clk 0:18:38]} 1-0

[Variant "Standard"]
[Site "Europe Echecs"]